[Event "Titled Tuesday Blitz August 1 Early 2023"]
[White "Ozates, Tuna"]
[Black "Zhao, Jun"]
[WhiteFideId "6354521"]
[BlackFideId "8602522"]
[WhiteElo "2617"]
[BlackElo "2722"]
[Result "0-1"]
[Round "9"]
[TimeControl "180+1"]
[Date "2023.08.01"]
[WhiteClock "0:01:08"]
[BlackClock "0:01:24"]
[Board "46"]

1. e4 {[%clk 0:03:00]}  c5 {[%clk 0:02:57]} 2. Nf3 {[%clk 0:03:00]}  d6 {[%clk 0:02:57]} 3. c3 {[%clk 0:03:00]}  Nf6 {[%clk 0:02:56]} 4. Bd3 {[%clk 0:03:01]}  Nc6 {[%clk 0:02:56]} 5. Bc2 {[%clk 0:03:01]}  Bg4 {[%clk 0:02:56]} 6. d3 {[%clk 0:02:58]}  e6 {[%clk 0:02:55]} 7. Nbd2 {[%clk 0:02:57]}  Be7 {[%clk 0:02:55]} 8. h3 {[%clk 0:02:58]}  Bh5 {[%clk 0:02:54]} 9. Nf1 {[%clk 0:02:58]}  Nd7 {[%clk 0:02:53]} 10. Ng3 {[%clk 0:02:58]}  Bg6 {[%clk 0:02:53]} 11. O-O {[%clk 0:02:58]}  O-O {[%clk 0:02:53]} 12. d4 {[%clk 0:02:55]}  cxd4 {[%clk 0:02:52]} 13. cxd4 {[%clk 0:02:56]}  Rc8 {[%clk 0:02:52]} 14. a3 {[%clk 0:02:56]}  d5 {[%clk 0:02:49]} 15. Re1 {[%clk 0:02:45]}  Nf6 {[%clk 0:02:46]} 16. e5 {[%clk 0:02:19]}  Bxc2 {[%clk 0:02:45]} 17. Qxc2 {[%clk 0:02:19]}  Nxe5 {[%clk 0:02:39]} 18. Qb3 {[%clk 0:02:14]}  Nxf3+ {[%clk 0:02:37]} 19. Qxf3 {[%clk 0:02:15]}  Rc4 {[%clk 0:02:33]} 20. Be3 {[%clk 0:02:11]}  Qb6 {[%clk 0:02:33]} 21. b4 {[%clk 0:02:11]}  Rfc8 {[%clk 0:02:32]} 22. h4 {[%clk 0:02:06]}  Rc3 {[%clk 0:02:30]} 23. h5 {[%clk 0:02:05]}  h6 {[%clk 0:02:27]} 24. Ne2 {[%clk 0:02:04]}  Rc2 {[%clk 0:02:25]} 25. g4 {[%clk 0:02:05]}  Ne4 {[%clk 0:02:22]} 26. Kg2 {[%clk 0:01:59]}  Qc7 {[%clk 0:02:18]} 27. Nf4 {[%clk 0:01:46]}  Bg5 {[%clk 0:02:14]} 28. Rac1 {[%clk 0:01:39]}  Qd7 {[%clk 0:01:58]} 29. Rxc2 {[%clk 0:01:36]}  Rxc2 {[%clk 0:01:59]} 30. Nd3 {[%clk 0:01:36]}  Qb5 {[%clk 0:01:49]} 31. Ne5 {[%clk 0:01:32]}  f6 {[%clk 0:01:43]} 32. Bxg5 {[%clk 0:01:28]}  Rxf2+ {[%clk 0:01:38]} 33. Qxf2 {[%clk 0:01:26]}  Nxf2 {[%clk 0:01:39]} 34. Kxf2 {[%clk 0:01:24]}  hxg5 {[%clk 0:01:39]} 35. Nf3 {[%clk 0:01:21]}  Kf7 {[%clk 0:01:37]} 36. Rc1 {[%clk 0:01:20]}  Qb6 {[%clk 0:01:30]} 37. Ke2 {[%clk 0:01:19]}  Qd6 {[%clk 0:01:29]} 38. Rc8 {[%clk 0:01:16]}  Qf4 {[%clk 0:01:29]} 39. Rd8 {[%clk 0:01:13]}  Qxg4 {[%clk 0:01:28]} 40. Rd7+ {[%clk 0:01:14]}  Kg8 {[%clk 0:01:28]} 41. Rxb7 {[%clk 0:01:13]}  Qe4+ {[%clk 0:01:27]} 42. Kf2 {[%clk 0:01:13]}  Qf4 {[%clk 0:01:25]} 43. Ke2 {[%clk 0:01:11]}  g4 {[%clk 0:01:25]} 44. Nd2 {[%clk 0:01:08]}  g3 {[%clk 0:01:24]} 0-1


[Site "https://www.chess.com"]

[Event "Titled Tuesday Blitz August 1 Early 2023"]
[White "Dimitrov, Atanas"]
[Black "Borgaonkar Akshay"]
[WhiteFideId "2901315"]
[BlackFideId "25639110"]
[WhiteElo "2713"]
[BlackElo "2583"]
[Result "1-0"]
[Round "9"]
[TimeControl "180+1"]
[Date "2023.08.01"]
[WhiteClock "0:01:55"]
[BlackClock "0:00:25"]
[Board "48"]

1. Nf3 {[%clk 0:02:55]}  Nf6 {[%clk 0:02:59]} 2. c4 {[%clk 0:02:55]}  g6 {[%clk 0:02:59]} 3. g3 {[%clk 0:02:55]}  Bg7 {[%clk 0:02:59]} 4. Bg2 {[%clk 0:02:56]}  O-O {[%clk 0:03:00]} 5. O-O {[%clk 0:02:56]}  d6 {[%clk 0:03:01]} 6. Nc3 {[%clk 0:02:57]}  e5 {[%clk 0:03:01]} 7. b3 {[%clk 0:02:57]}  Nc6 {[%clk 0:03:02]} 8. Bb2 {[%clk 0:02:58]}  Bf5 {[%clk 0:03:01]} 9. d3 {[%clk 0:02:54]}  e4 {[%clk 0:02:58]} 10. Nh4 {[%clk 0:02:53]}  Re8 {[%clk 0:02:24]} 11. Nxf5 {[%clk 0:02:50]}  gxf5 {[%clk 0:01:57]} 12. dxe4 {[%clk 0:02:33]}  fxe4 {[%clk 0:01:55]} 13. e3 {[%clk 0:02:13]}  Qd7 {[%clk 0:00:25]} 14. Rb1 {[%clk 0:01:55]} 1-0


[Site "https://www.chess.com"]

[Event "Titled Tuesday Blitz August 1 Early 2023"]
[White "Ahmad, Khagan"]
[Black "nickVet"]
[WhiteFideId "13431552"]
[WhiteElo "2575"]
[BlackElo "2709"]
[Result "1-0"]
[Round "9"]
[TimeControl "180+1"]
[Date "2023.08.01"]
[WhiteClock "0:00:05"]
[BlackClock "0:00:00"]
[Board "49"]

1. c4 {[%clk 0:02:58]}  c6 {[%clk 0:03:00]} 2. d4 {[%clk 0:02:50]}  d5 {[%clk 0:03:00]} 3. Nf3 {[%clk 0:02:51]}  Nf6 {[%clk 0:03:00]} 4. Nc3 {[%clk 0:02:50]}  e6 {[%clk 0:03:00]} 5. Bg5 {[%clk 0:02:40]}  h6 {[%clk 0:03:00]} 6. Bxf6 {[%clk 0:02:39]}  Qxf6 {[%clk 0:03:00]} 7. e3 {[%clk 0:02:40]}  Nd7 {[%clk 0:03:01]} 8. a3 {[%clk 0:02:35]}  Qd8 {[%clk 0:02:58]} 9. e4 {[%clk 0:02:36]}  dxe4 {[%clk 0:02:46]} 10. Nxe4 {[%clk 0:02:37]}  Nf6 {[%clk 0:02:47]} 11. Bd3 {[%clk 0:02:32]}  Nxe4 {[%clk 0:02:29]} 12. Bxe4 {[%clk 0:02:33]}  c5 {[%clk 0:02:30]} 13. dxc5 {[%clk 0:02:21]}  Bxc5 {[%clk 0:01:54]} 14. b4 {[%clk 0:02:15]}  Be7 {[%clk 0:01:51]} 15. Qxd8+ {[%clk 0:02:06]}  Kxd8 {[%clk 0:01:44]} 16. Ne5 {[%clk 0:01:59]}  Rf8 {[%clk 0:01:43]} 17. c5 {[%clk 0:01:58]}  Kc7 {[%clk 0:01:42]} 18. Rd1 {[%clk 0:01:53]}  Bf6 {[%clk 0:01:40]} 19. Nc4 {[%clk 0:01:53]}  Rb8 {[%clk 0:01:37]} 20. Nd6 {[%clk 0:01:46]}  Bd7 {[%clk 0:01:17]} 21. O-O {[%clk 0:01:08]}  Bc6 {[%clk 0:01:11]} 22. Bxc6 {[%clk 0:01:06]}  bxc6 {[%clk 0:01:11]} 23. Rd3 {[%clk 0:01:03]}  a5 {[%clk 0:00:57]} 24. bxa5 {[%clk 0:00:50]}  Rb2 {[%clk 0:00:43]} 25. h3 {[%clk 0:00:32]}  Ra8 {[%clk 0:00:37]} 26. Rfd1 {[%clk 0:00:25]}  Rc2 {[%clk 0:00:26]} 27. Ne4 {[%clk 0:00:24]}  Rd8 {[%clk 0:00:16]} 28. Nxf6 {[%clk 0:00:14]}  Rxd3 {[%clk 0:00:16]} 29. Rxd3 {[%clk 0:00:15]}  gxf6 {[%clk 0:00:16]} 30. Rd4 {[%clk 0:00:14]}  Rxc5 {[%clk 0:00:15]} 31. Ra4 {[%clk 0:00:15]}  Kb7 {[%clk 0:00:14]} 32. a6+ {[%clk 0:00:11]}  Ka7 {[%clk 0:00:14]} 33. Rh4 {[%clk 0:00:11]}  h5 {[%clk 0:00:14]} 34. Rf4 {[%clk 0:00:09]}  f5 {[%clk 0:00:10]} 35. Rh4 {[%clk 0:00:09]}  Kxa6 {[%clk 0:00:09]} 36. Rxh5 {[%clk 0:00:09]}  Rd5 {[%clk 0:00:09]} 37. Rh7 {[%clk 0:00:08]}  Rd7 {[%clk 0:00:09]} 38. h4 {[%clk 0:00:07]}  c5 {[%clk 0:00:09]} 39. Rh8 {[%clk 0:00:07]}  Rc7 {[%clk 0:00:09]} 40. h5 {[%clk 0:00:04]}  c4 {[%clk 0:00:09]} 41. Rb8 {[%clk 0:00:04]}  c3 {[%clk 0:00:09]} 42. Rb1 {[%clk 0:00:04]}  Ka5 {[%clk 0:00:09]} 43. h6 {[%clk 0:00:04]}  Ka4 {[%clk 0:00:08]} 44. Kh2 {[%clk 0:00:03]}  Kxa3 {[%clk 0:00:08]} 45. Rb8 {[%clk 0:00:02]}  c2 {[%clk 0:00:03]} 46. Ra8+ {[%clk 0:00:02]}  Kb4 {[%clk 0:00:03]} 47. Rb8+ {[%clk 0:00:02]}  Ka5 {[%clk 0:00:03]} 48. h7 {[%clk 0:00:01]}  c1=Q {[%clk 0:00:03]} 49. h8=Q {[%clk 0:00:02]}  Qf4+ {[%clk 0:00:03]} 50. Kh3 {[%clk 0:00:03]}  Qg4+ {[%clk 0:00:03]} 51. Kh2 {[%clk 0:00:03]}  Qf4+ {[%clk 0:00:03]} 52. Kh3 {[%clk 0:00:04]}  Rc3+ {[%clk 0:00:03]} 53. g3 {[%clk 0:00:04]}  Qg4+ {[%clk 0:00:03]} 54. Kh2 {[%clk 0:00:05]}  Qe2 {[%clk 0:00:00]} 55. Qxc3+ {[%clk 0:00:05]} 1-0


[Site "https://www.chess.com"]

[Event "Titled Tuesday Blitz August 1 Early 2023"]
[White "Postlmayer, Jakob"]
[Black "Zeynalli, Rashad"]
[WhiteFideId "1643622"]
[BlackFideId "13403320"]
[WhiteElo "2561"]
[BlackElo "2705"]
[Result "0-1"]
[Round "9"]
[TimeControl "180+1"]
[Date "2023.08.01"]
[WhiteClock "0:00:25"]
[BlackClock "0:00:17"]
[Board "50"]

1. d4 {[%clk 0:03:00]}  d5 {[%clk 0:02:59]} 2. c4 {[%clk 0:02:59]}  e6 {[%clk 0:02:59]} 3. Nc3 {[%clk 0:02:58]}  Be7 {[%clk 0:02:58]} 4. Nf3 {[%clk 0:02:58]}  Nf6 {[%clk 0:02:57]} 5. g3 {[%clk 0:02:56]}  O-O {[%clk 0:02:52]} 6. Bg2 {[%clk 0:02:56]}  dxc4 {[%clk 0:02:17]} 7. Ne5 {[%clk 0:02:56]}  Nc6 {[%clk 0:02:17]} 8. Bxc6 {[%clk 0:02:56]}  bxc6 {[%clk 0:02:18]} 9. Nxc6 {[%clk 0:02:56]}  Qe8 {[%clk 0:02:18]} 10. Nxe7+ {[%clk 0:02:56]}  Qxe7 {[%clk 0:02:18]} 11. Qa4 {[%clk 0:02:56]}  c5 {[%clk 0:02:15]} 12. dxc5 {[%clk 0:02:57]}  Qxc5 {[%clk 0:02:15]} 13. Be3 {[%clk 0:02:57]}  Qc7 {[%clk 0:02:08]} 14. f3 {[%clk 0:02:57]}  Bd7 {[%clk 0:02:06]} 15. Qa3 {[%clk 0:02:53]}  Nd5 {[%clk 0:02:04]} 16. Nxd5 {[%clk 0:02:52]}  exd5 {[%clk 0:02:04]} 17. Bd4 {[%clk 0:02:52]}  Rfe8 {[%clk 0:02:01]} 18. Kf2 {[%clk 0:02:51]}  a5 {[%clk 0:01:55]} 19. Qc3 {[%clk 0:02:50]}  f6 {[%clk 0:01:53]} 20. h4 {[%clk 0:02:41]}  Re6 {[%clk 0:01:50]} 21. Rae1 {[%clk 0:02:40]}  Rae8 {[%clk 0:01:46]} 22. Qd2 {[%clk 0:02:38]}  a4 {[%clk 0:01:41]} 23. a3 {[%clk 0:02:37]}  Qc6 {[%clk 0:01:34]} 24. g4 {[%clk 0:02:36]}  Qb5 {[%clk 0:01:32]} 25. Rhg1 {[%clk 0:02:27]}  Bc8 {[%clk 0:01:31]} 26. g5 {[%clk 0:02:17]}  f5 {[%clk 0:01:29]} 27. h5 {[%clk 0:02:14]}  Ba6 {[%clk 0:01:28]} 28. Bc3 {[%clk 0:02:05]}  Rd8 {[%clk 0:01:21]} 29. Qd4 {[%clk 0:02:01]}  Qb6 {[%clk 0:01:18]} 30. Qxb6 {[%clk 0:02:01]}  Rxb6 {[%clk 0:01:19]} 31. Ba5 {[%clk 0:02:01]}  Rdb8 {[%clk 0:01:16]} 32. Bxb6 {[%clk 0:02:01]}  Rxb6 {[%clk 0:01:17]} 33. Rb1 {[%clk 0:02:01]}  d4 {[%clk 0:01:16]} 34. Rgd1 {[%clk 0:01:59]}  Rd6 {[%clk 0:01:14]} 35. Rd2 {[%clk 0:01:57]}  Kf7 {[%clk 0:01:11]} 36. Rbd1 {[%clk 0:01:56]}  d3 {[%clk 0:01:11]} 37. exd3 {[%clk 0:01:57]}  cxd3 {[%clk 0:01:11]} 38. Re1 {[%clk 0:01:57]}  Rd5 {[%clk 0:01:05]} 39. Kg3 {[%clk 0:01:53]}  Rc5 {[%clk 0:00:59]} 40. Kf4 {[%clk 0:01:49]}  g6 {[%clk 0:00:54]} 41. hxg6+ {[%clk 0:01:42]}  hxg6 {[%clk 0:00:55]} 42. Rh1 {[%clk 0:01:36]}  Ke6 {[%clk 0:00:51]} 43. Re1+ {[%clk 0:01:32]}  Kd6 {[%clk 0:00:51]} 44. Ke3 {[%clk 0:01:18]}  Ke5 {[%clk 0:00:37]} 45. f4+ {[%clk 0:01:15]}  Kd6 {[%clk 0:00:36]} 46. Rh1 {[%clk 0:01:12]}  Rc8 {[%clk 0:00:28]} 47. Rh6 {[%clk 0:01:08]}  Re8+ {[%clk 0:00:28]} 48. Kf2 {[%clk 0:01:06]}  Re6 {[%clk 0:00:27]} 49. Rh3 {[%clk 0:00:54]}  Kd5 {[%clk 0:00:22]} 50. Re3 {[%clk 0:00:53]}  Re4 {[%clk 0:00:19]} 51. Kf3 {[%clk 0:00:25]}  Kd4 {[%clk 0:00:17]} 0-1


[Site "https://www.chess.com"]

[Event "Titled Tuesday Blitz August 1 Early 2023"]
[White "Perez, Maximiliano"]
[Black "Gunina, Valentina"]
[WhiteFideId "117234"]
[BlackFideId "4167570"]
[WhiteElo "2553"]
[BlackElo "2704"]
[Result "1-0"]
[Round "9"]
[TimeControl "180+1"]
[Date "2023.08.01"]
[WhiteClock "0:00:09"]
[BlackClock "0:00:00"]
[Board "51"]

1. e4 {[%clk 0:02:58]}  c6 {[%clk 0:02:59]} 2. Nc3 {[%clk 0:02:53]}  d5 {[%clk 0:02:59]} 3. Nf3 {[%clk 0:02:54]}  dxe4 {[%clk 0:02:59]} 4. Nxe4 {[%clk 0:02:53]}  Nf6 {[%clk 0:02:59]} 5. Qe2 {[%clk 0:02:51]}  Nxe4 {[%clk 0:02:59]} 6. Qxe4 {[%clk 0:02:51]}  Nd7 {[%clk 0:02:59]} 7. Bc4 {[%clk 0:02:48]}  Nf6 {[%clk 0:02:59]} 8. Ne5 {[%clk 0:02:48]}  e6 {[%clk 0:03:00]} 9. Qe2 {[%clk 0:02:44]}  b5 {[%clk 0:02:59]} 10. Bb3 {[%clk 0:02:43]}  Qc7 {[%clk 0:02:50]} 11. d4 {[%clk 0:02:41]}  Bd6 {[%clk 0:02:43]} 12. a4 {[%clk 0:02:38]}  c5 {[%clk 0:02:26]} 13. axb5 {[%clk 0:02:12]}  cxd4 {[%clk 0:02:25]} 14. Qf3 {[%clk 0:02:12]}  Bb7 {[%clk 0:02:17]} 15. Nc6 {[%clk 0:02:12]}  O-O {[%clk 0:02:17]} 16. Bg5 {[%clk 0:02:10]}  Nd7 {[%clk 0:02:14]} 17. Qd3 {[%clk 0:01:13]}  e5 {[%clk 0:02:00]} 18. Ne7+ {[%clk 0:00:52]}  Bxe7 {[%clk 0:01:59]} 19. Bxe7 {[%clk 0:00:53]}  Nc5 {[%clk 0:01:59]} 20. Bxc5 {[%clk 0:00:50]}  Qxc5 {[%clk 0:01:59]} 21. O-O {[%clk 0:00:51]}  e4 {[%clk 0:01:53]} 22. Qe2 {[%clk 0:00:47]}  a6 {[%clk 0:01:53]} 23. bxa6 {[%clk 0:00:45]}  Bc6 {[%clk 0:01:53]} 24. Bc4 {[%clk 0:00:43]}  Kh8 {[%clk 0:01:46]} 25. b3 {[%clk 0:00:40]}  f5 {[%clk 0:01:46]} 26. Qh5 {[%clk 0:00:38]}  Qb4 {[%clk 0:01:37]} 27. Rad1 {[%clk 0:00:36]}  Rad8 {[%clk 0:01:29]} 28. Qg5 {[%clk 0:00:34]}  Qd6 {[%clk 0:01:11]} 29. Ra1 {[%clk 0:00:30]}  f4 {[%clk 0:01:08]} 30. a7 {[%clk 0:00:28]}  h6 {[%clk 0:00:59]} 31. Qh4 {[%clk 0:00:21]}  Qg6 {[%clk 0:00:45]} 32. Ra6 {[%clk 0:00:20]}  e3 {[%clk 0:00:44]} 33. f3 {[%clk 0:00:14]}  Rd6 {[%clk 0:00:17]} 34. Bd3 {[%clk 0:00:13]}  Qe6 {[%clk 0:00:15]} 35. Rxc6 {[%clk 0:00:07]}  Rxc6 {[%clk 0:00:12]} 36. Ra1 {[%clk 0:00:08]}  Rcc8 {[%clk 0:00:00]} 37. Be4 {[%clk 0:00:09]} 1-0


[Site "https://www.chess.com"]

[Event "Titled Tuesday Blitz August 1 Early 2023"]
[White "Heinemann, Josefine"]
[Black "Oleksiyenko, Mykhaylo"]
[WhiteFideId "12900460"]
[BlackFideId "4152417"]
[WhiteElo "2546"]
[BlackElo "2703"]
[Result "1/2-1/2"]
[Round "9"]
[TimeControl "180+1"]
[Date "2023.08.01"]
[WhiteClock "0:00:42"]
[BlackClock "0:00:25"]
[Board "52"]

1. e4 {[%clk 0:02:56]}  c5 {[%clk 0:02:59]} 2. c3 {[%clk 0:02:53]}  d5 {[%clk 0:02:59]} 3. exd5 {[%clk 0:02:53]}  Qxd5 {[%clk 0:03:00]} 4. Nf3 {[%clk 0:02:53]}  Nf6 {[%clk 0:03:00]} 5. d4 {[%clk 0:02:53]}  e6 {[%clk 0:03:01]} 6. Na3 {[%clk 0:02:53]}  Nc6 {[%clk 0:03:01]} 7. Be3 {[%clk 0:02:50]}  cxd4 {[%clk 0:03:01]} 8. Nb5 {[%clk 0:02:50]}  Qd7 {[%clk 0:03:01]} 9. Nbxd4 {[%clk 0:02:50]}  Be7 {[%clk 0:03:01]} 10. Nxc6 {[%clk 0:02:46]}  Qxc6 {[%clk 0:03:02]} 11. Ne5 {[%clk 0:02:47]}  Qc7 {[%clk 0:02:55]} 12. Bb5+ {[%clk 0:02:40]}  Nd7 {[%clk 0:02:43]} 13. Nxd7 {[%clk 0:02:37]}  Bxd7 {[%clk 0:02:44]} 14. Bxd7+ {[%clk 0:02:37]}  Qxd7 {[%clk 0:02:44]} 15. Qxd7+ {[%clk 0:02:38]}  Kxd7 {[%clk 0:02:45]} 16. Ke2 {[%clk 0:02:38]}  Kc6 {[%clk 0:02:40]} 17. Rhd1 {[%clk 0:02:37]}  a6 {[%clk 0:02:37]} 18. Rd2 {[%clk 0:02:36]}  Rhd8 {[%clk 0:02:37]} 19. Rad1 {[%clk 0:02:36]}  b5 {[%clk 0:02:34]} 20. Rxd8 {[%clk 0:02:34]}  Rxd8 {[%clk 0:02:35]} 21. Rxd8 {[%clk 0:02:34]}  Bxd8 {[%clk 0:02:36]} 22. Kd3 {[%clk 0:02:34]}  Kd5 {[%clk 0:02:32]} 23. b3 {[%clk 0:02:28]}  Be7 {[%clk 0:02:30]} 24. c4+ {[%clk 0:02:28]}  bxc4+ {[%clk 0:02:30]} 25. bxc4+ {[%clk 0:02:28]}  Kc6 {[%clk 0:02:30]} 26. Ke4 {[%clk 0:02:25]}  Bd6 {[%clk 0:02:28]} 27. h3 {[%clk 0:02:25]}  f5+ {[%clk 0:02:27]} 28. Kd3 {[%clk 0:02:25]}  e5 {[%clk 0:02:22]} 29. f3 {[%clk 0:02:25]}  Bc5 {[%clk 0:02:19]} 30. g4 {[%clk 0:02:18]}  Bxe3 {[%clk 0:01:57]} 31. Kxe3 {[%clk 0:02:19]}  g6 {[%clk 0:01:57]} 32. Kd3 {[%clk 0:01:51]}  Kc5 {[%clk 0:01:57]} 33. Kc3 {[%clk 0:01:51]}  h5 {[%clk 0:00:34]} 34. a3 {[%clk 0:01:00]}  a5 {[%clk 0:00:32]} 35. gxh5 {[%clk 0:00:52]}  gxh5 {[%clk 0:00:32]} 36. h4 {[%clk 0:00:53]}  e4 {[%clk 0:00:18]} 37. fxe4 {[%clk 0:00:52]}  fxe4 {[%clk 0:00:19]} 38. a4 {[%clk 0:00:53]}  e3 {[%clk 0:00:19]} 39. Kd3 {[%clk 0:00:53]}  e2 {[%clk 0:00:17]} 40. Kxe2 {[%clk 0:00:53]}  Kxc4 {[%clk 0:00:18]} 41. Kd2 {[%clk 0:00:35]}  Kb4 {[%clk 0:00:18]} 42. Kd3 {[%clk 0:00:35]}  Kxa4 {[%clk 0:00:19]} 43. Kc4 {[%clk 0:00:35]}  Ka3 {[%clk 0:00:19]} 44. Kc3 {[%clk 0:00:36]}  a4 {[%clk 0:00:19]} 45. Kc2 {[%clk 0:00:36]}  Kb4 {[%clk 0:00:20]} 46. Kb2 {[%clk 0:00:36]}  Kc4 {[%clk 0:00:20]} 47. Ka3 {[%clk 0:00:37]}  Kd4 {[%clk 0:00:21]} 48. Kxa4 {[%clk 0:00:37]}  Ke4 {[%clk 0:00:22]} 49. Kb3 {[%clk 0:00:38]}  Kf4 {[%clk 0:00:23]} 50. Kc2 {[%clk 0:00:39]}  Kg4 {[%clk 0:00:23]} 51. Kd2 {[%clk 0:00:40]}  Kxh4 {[%clk 0:00:24]} 52. Ke2 {[%clk 0:00:40]}  Kg3 {[%clk 0:00:25]} 53. Kf1 {[%clk 0:00:41]}  h4 {[%clk 0:00:25]} 54. Kg1 {[%clk 0:00:42]}  h3 {[%clk 0:00:24]} 55. Kh1 {[%clk 0:00:42]}  h2 {[%clk 0:00:25]} 1/2-1/2


[Site "https://www.chess.com"]

[Event "Titled Tuesday Blitz August 1 Early 2023"]
[White "Kleiman, Jake"]
[Black "only_strong_moves"]
[WhiteFideId "2020041"]
[WhiteElo "2533"]
[BlackElo "2699"]
[Result "1/2-1/2"]
[Round "9"]
[TimeControl "180+1"]
[Date "2023.08.01"]
[WhiteClock "0:00:11"]
[BlackClock "0:00:07"]
[Board "53"]

1. e4 {[%clk 0:03:00]}  e6 {[%clk 0:02:59]} 2. d3 {[%clk 0:03:00]}  b6 {[%clk 0:02:58]} 3. Nf3 {[%clk 0:03:00]}  Bb7 {[%clk 0:02:58]} 4. g3 {[%clk 0:02:59]}  f5 {[%clk 0:02:58]} 5. Bg2 {[%clk 0:02:26]}  fxe4 {[%clk 0:02:54]} 6. Ng5 {[%clk 0:02:26]}  Nf6 {[%clk 0:02:51]} 7. O-O {[%clk 0:02:22]}  Be7 {[%clk 0:02:42]} 8. dxe4 {[%clk 0:02:12]}  O-O {[%clk 0:02:34]} 9. e5 {[%clk 0:01:34]}  Bxg2 {[%clk 0:02:23]} 10. exf6 {[%clk 0:01:34]}  Bxf6 {[%clk 0:02:23]} 11. Kxg2 {[%clk 0:01:21]}  Bxg5 {[%clk 0:02:23]} 12. Bxg5 {[%clk 0:01:12]}  Qxg5 {[%clk 0:02:24]} 13. Nc3 {[%clk 0:01:13]}  d6 {[%clk 0:02:01]} 14. Qe2 {[%clk 0:01:12]}  Qf5 {[%clk 0:01:43]} 15. Rae1 {[%clk 0:01:12]}  e5 {[%clk 0:01:38]} 16. f4 {[%clk 0:01:04]}  Qe6 {[%clk 0:01:05]} 17. fxe5 {[%clk 0:01:02]}  Rxf1 {[%clk 0:01:04]} 18. Rxf1 {[%clk 0:00:49]}  dxe5 {[%clk 0:01:01]} 19. Qf3 {[%clk 0:00:49]}  Nc6 {[%clk 0:01:02]} 20. Nb5 {[%clk 0:00:30]}  e4 {[%clk 0:00:47]} 21. Qf4 {[%clk 0:00:19]}  Rd8 {[%clk 0:00:22]} 22. Nxc7 {[%clk 0:00:18]}  Qe7 {[%clk 0:00:22]} 23. Re1 {[%clk 0:00:16]}  g5 {[%clk 0:00:10]} 24. Qf5 {[%clk 0:00:11]}  Qxc7 {[%clk 0:00:09]} 25. Qxg5+ {[%clk 0:00:11]}  Qg7 {[%clk 0:00:10]} 26. Qf4 {[%clk 0:00:07]}  Rf8 {[%clk 0:00:06]} 27. Qxe4 {[%clk 0:00:07]}  Nd8 {[%clk 0:00:04]} 28. c3 {[%clk 0:00:07]}  Kh8 {[%clk 0:00:04]} 29. Re2 {[%clk 0:00:06]}  Nf7 {[%clk 0:00:04]} 30. a4 {[%clk 0:00:06]}  Ng5 {[%clk 0:00:04]} 31. Qe5 {[%clk 0:00:06]}  Qxe5 {[%clk 0:00:03]} 32. Rxe5 {[%clk 0:00:07]}  Nf7 {[%clk 0:00:03]} 33. Re7 {[%clk 0:00:07]}  a6 {[%clk 0:00:02]} 34. Rb7 {[%clk 0:00:08]}  Kg7 {[%clk 0:00:02]} 35. Rxb6 {[%clk 0:00:08]}  Rd8 {[%clk 0:00:02]} 36. h4 {[%clk 0:00:07]}  Rd2+ {[%clk 0:00:03]} 37. Kh3 {[%clk 0:00:08]}  a5 {[%clk 0:00:03]} 38. Rb5 {[%clk 0:00:07]}  h6 {[%clk 0:00:03]} 39. b3 {[%clk 0:00:07]}  Rc2 {[%clk 0:00:04]} 40. Rxa5 {[%clk 0:00:07]}  Rxc3 {[%clk 0:00:04]} 41. Rb5 {[%clk 0:00:07]}  Nd6 {[%clk 0:00:04]} 42. Rb6 {[%clk 0:00:07]}  Nf5 {[%clk 0:00:03]} 43. Kg2 {[%clk 0:00:06]}  Rxg3+ {[%clk 0:00:02]} 44. Kf2 {[%clk 0:00:07]}  Rc3 {[%clk 0:00:03]} 45. h5 {[%clk 0:00:07]}  Nd4 {[%clk 0:00:03]} 46. b4 {[%clk 0:00:07]}  Ra3 {[%clk 0:00:03]} 47. a5 {[%clk 0:00:08]}  Nc2 {[%clk 0:00:02]} 48. a6 {[%clk 0:00:08]}  Nxb4 {[%clk 0:00:02]} 49. Rxb4 {[%clk 0:00:08]}  Rxa6 {[%clk 0:00:02]} 50. Rf4 {[%clk 0:00:08]}  Ra5 {[%clk 0:00:02]} 51. Rh4 {[%clk 0:00:07]}  Kf6 {[%clk 0:00:02]} 52. Kg3 {[%clk 0:00:08]}  Kg5 {[%clk 0:00:02]} 53. Re4 {[%clk 0:00:07]}  Ra3+ {[%clk 0:00:02]} 54. Kg2 {[%clk 0:00:07]}  Kxh5 {[%clk 0:00:02]} 55. Re5+ {[%clk 0:00:08]}  Kg4 {[%clk 0:00:02]} 56. Re4+ {[%clk 0:00:09]}  Kg5 {[%clk 0:00:02]} 57. Re8 {[%clk 0:00:10]}  h5 {[%clk 0:00:02]} 58. Rg8+ {[%clk 0:00:10]}  Kh4 {[%clk 0:00:03]} 59. Kh2 {[%clk 0:00:09]}  Ra2+ {[%clk 0:00:03]} 60. Kh1 {[%clk 0:00:10]}  Rb2 {[%clk 0:00:04]} 61. Rg7 {[%clk 0:00:10]}  Kh3 {[%clk 0:00:04]} 62. Rg8 {[%clk 0:00:11]}  Rb1+ {[%clk 0:00:04]} 63. Rg1 {[%clk 0:00:11]}  Rb2 {[%clk 0:00:05]} 64. Re1 {[%clk 0:00:11]}  h4 {[%clk 0:00:05]} 65. Kg1 {[%clk 0:00:11]}  Kg3 {[%clk 0:00:05]} 66. Re3+ {[%clk 0:00:11]}  Kf4 {[%clk 0:00:06]} 67. Rc3 {[%clk 0:00:11]}  Rb4 {[%clk 0:00:05]} 68. Kh2 {[%clk 0:00:11]}  Kg4 {[%clk 0:00:05]} 69. Rc2 {[%clk 0:00:11]}  h3 {[%clk 0:00:06]} 70. Rd2 {[%clk 0:00:11]}  Kh4 {[%clk 0:00:06]} 71. Re2 {[%clk 0:00:11]}  Rf4 {[%clk 0:00:06]} 72. Rd2 {[%clk 0:00:12]}  Kg4 {[%clk 0:00:07]} 73. Re2 {[%clk 0:00:12]}  Kf3 {[%clk 0:00:07]} 74. Rb2 {[%clk 0:00:12]}  Kg4 {[%clk 0:00:07]} 75. Rc2 {[%clk 0:00:12]}  Re4 {[%clk 0:00:07]} 76. Rd2 {[%clk 0:00:12]}  Kf3 {[%clk 0:00:06]} 77. Rd3+ {[%clk 0:00:12]}  Ke2 {[%clk 0:00:06]} 78. Rxh3 {[%clk 0:00:12]}  Re3 {[%clk 0:00:06]} 79. Rxe3+ {[%clk 0:00:11]}  Kxe3 {[%clk 0:00:07]} 1/2-1/2


[Site "https://www.chess.com"]